[Event "Early-Titled-Tuesday-Blitz-September-12-2023"]
[Site "Chess.com"]
[Date "2023.09.12"]
[Round "9"]
[White "HajiyevKanan"]
[Black "jk13"]
[Result "0-1"]
[WhiteElo "2519"]
[BlackElo "2680"]
[TimeControl "180+1"]
[EndTime "9:46:51 PDT"]
[Termination "jk13 won on time"]

1. d4 {[%clk 0:02:27.8]} 1... Nf6 {[%clk 0:02:59.7]} 2. Nf3 {[%clk 0:02:27.3]}
2... e6 {[%clk 0:02:59.7]} 3. c4 {[%clk 0:02:27.6]} 3... Bb4+ {[%clk 0:02:59.1]}
4. Bd2 {[%clk 0:02:27.5]} 4... Bxd2+ {[%clk 0:02:59.2]} 5. Qxd2 {[%clk
0:02:28.4]} 5... O-O {[%clk 0:02:59.6]} 6. Nc3 {[%clk 0:02:28.4]} 6... d5 {[%clk
0:03:00.5]} 7. e3 {[%clk 0:02:27.6]} 7... Qe7 {[%clk 0:03:00.7]} 8. Bd3 {[%clk
0:02:27.7]} 8... dxc4 {[%clk 0:03:00.2]} 9. Bxc4 {[%clk 0:02:28.4]} 9... Rd8
{[%clk 0:03:00.9]} 10. O-O {[%clk 0:02:26.2]} 10... c5 {[%clk 0:03:01.6]} 11.
Qe2 {[%clk 0:02:26.4]} 11... Nc6 {[%clk 0:03:01.2]} 12. dxc5 {[%clk 0:02:25.6]}
12... Qxc5 {[%clk 0:03:00.7]} 13. Rfd1 {[%clk 0:02:25.5]} 13... Bd7 {[%clk
0:03:01.2]} 14. Rac1 {[%clk 0:02:25]} 14... Rac8 {[%clk 0:03:00.1]} 15. Bb3
{[%clk 0:02:24.9]} 15... Qa5 {[%clk 0:02:52.4]} 16. h3 {[%clk 0:02:21.4]} 16...
h6 {[%clk 0:02:50.8]} 17. Qb5 {[%clk 0:02:20.2]} 17... a6 {[%clk 0:02:33.1]} 18.
Qxa5 {[%clk 0:02:15.2]} 18... Nxa5 {[%clk 0:02:34]} 19. Ne5 {[%clk 0:02:08.5]}
19... Be8 {[%clk 0:02:26.1]} 20. Rxd8 {[%clk 0:01:51.5]} 20... Rxd8 {[%clk
0:02:26.3]} 21. Rd1 {[%clk 0:01:52.2]} 21... Rc8 {[%clk 0:02:24.8]} 22. Bc2
{[%clk 0:01:51]} 22... Kf8 {[%clk 0:02:11.9]} 23. Bd3 {[%clk 0:01:38.4]} 23...
Ke7 {[%clk 0:02:01]} 24. f4 {[%clk 0:01:38.6]} 24... Nc6 {[%clk 0:01:51.7]} 25.
Nxc6+ {[%clk 0:01:35.3]} 25... Bxc6 {[%clk 0:01:52.6]} 26. e4 {[%clk 0:01:31.3]}
26... e5 {[%clk 0:01:32.1]} 27. g3 {[%clk 0:00:59.1]} 27... Rd8 {[%clk
0:01:22.2]} 28. fxe5 {[%clk 0:00:26.8]} 28... Nxe4 {[%clk 0:00:54.1]} 29. Bxe4
{[%clk 0:00:16.4]} 29... Rxd1+ {[%clk 0:00:53.9]} 30. Nxd1 {[%clk 0:00:17.3]}
30... Bxe4 {[%clk 0:00:54.5]} 31. Kf2 {[%clk 0:00:17.5]} 31... Ke6 {[%clk
0:00:53.4]} 32. Ke3 {[%clk 0:00:17.4]} 32... Kxe5 {[%clk 0:00:52.8]} 33. Nc3
{[%clk 0:00:18]} 33... Bc6 {[%clk 0:00:50.3]} 34. h4 {[%clk 0:00:18.6]} 34... g5
{[%clk 0:00:49.5]} 35. hxg5 {[%clk 0:00:18.4]} 35... hxg5 {[%clk 0:00:50.1]} 36.
Ne2 {[%clk 0:00:18.8]} 36... f5 {[%clk 0:00:50.3]} 37. a3 {[%clk 0:00:17.1]}
37... Bb5 {[%clk 0:00:48]} 38. Nc3 {[%clk 0:00:15.7]} 38... f4+ {[%clk
0:00:45.2]} 39. gxf4+ {[%clk 0:00:14.9]} 39... gxf4+ {[%clk 0:00:46.1]} 40. Kf3
{[%clk 0:00:12.8]} 40... Bc6+ {[%clk 0:00:46.4]} 41. Ke2 {[%clk 0:00:12.6]}
41... Kd4 {[%clk 0:00:45.2]} 42. Kd2 {[%clk 0:00:11.3]} 42... f3 {[%clk
0:00:41.9]} 43. Nd1 {[%clk 0:00:12]} 43... Kc4 {[%clk 0:00:41]} 44. Nf2 {[%clk
0:00:04.5]} 44... Kb3 {[%clk 0:00:40.1]} 45. Kc1 {[%clk 0:00:05.2]} 45... Bd7
{[%clk 0:00:34.5]} 46. Nd3 {[%clk 0:00:05.3]} 46... Bf5 {[%clk 0:00:32.3]} 47.
Nf2 {[%clk 0:00:05]} 47... a5 {[%clk 0:00:31.2]} 48. Nd1 {[%clk 0:00:05.1]}
48... Bh7 {[%clk 0:00:28]} 49. Nf2 {[%clk 0:00:05.3]} 49... b6 {[%clk
0:00:27.3]} 50. Nd1 {[%clk 0:00:05.6]} 50... Bd3 {[%clk 0:00:21]} 51. Nf2 {[%clk
0:00:05.6]} 51... Be2 {[%clk 0:00:21.8]} 52. Ne4 {[%clk 0:00:05.6]} 52... Kc4
{[%clk 0:00:21.4]} 53. Kd2 {[%clk 0:00:05.2]} 53... Kd4 {[%clk 0:00:22.1]} 54.
Nf2 {[%clk 0:00:05.6]} 54... Bc4 {[%clk 0:00:20.9]} 55. Ng4 {[%clk 0:00:05.2]}
55... Be6 {[%clk 0:00:20]} 56. Nf2 {[%clk 0:00:05.6]} 56... Bf5 {[%clk
0:00:20.6]} 57. Nd1 {[%clk 0:00:05.4]} 57... Ke4 {[%clk 0:00:20.6]} 58. Nf2+
{[%clk 0:00:05.5]} 58... Kf4 {[%clk 0:00:21]} 59. Ke1 {[%clk 0:00:05.7]} 59...
Ke3 {[%clk 0:00:20.8]} 60. Nd1+ {[%clk 0:00:05.7]} 60... Kd3 {[%clk 0:00:20.7]}
61. Kf2 {[%clk 0:00:03.7]} 61... Be4 {[%clk 0:00:17.9]} 62. b4 {[%clk
0:00:03.8]} 62... axb4 {[%clk 0:00:16]} 63. axb4 {[%clk 0:00:04.7]} 63... Kc4
{[%clk 0:00:14.6]} 64. Ke3 {[%clk 0:00:04.4]} 64... Bb7 {[%clk 0:00:14.4]} 65.
b5 {[%clk 0:00:03.3]} 65... Kxb5 {[%clk 0:00:14.8]} 66. Nf2 {[%clk 0:00:03.6]}
66... Kc4 {[%clk 0:00:15.2]} 67. Nd3 {[%clk 0:00:03.8]} 67... b5 {[%clk
0:00:14.4]} 68. Ne5+ {[%clk 0:00:04.5]} 68... Kc3 {[%clk 0:00:14.6]} 69. Nd7
{[%clk 0:00:03.6]} 69... b4 {[%clk 0:00:14.5]} 70. Nc5 {[%clk 0:00:04.5]} 70...
Bc6 {[%clk 0:00:14.9]} 71. Ne6 {[%clk 0:00:03.8]} 71... b3 {[%clk 0:00:15]} 72.
Nd4 {[%clk 0:00:02.8]} 72... b2 {[%clk 0:00:13.7]} 73. Nxc6 {[%clk 0:00:03.1]}
73... b1=Q {[%clk 0:00:14]} 74. Ne5 {[%clk 0:00:01.3]} 74... Qe1+ {[%clk
0:00:12.8]} 0-1

[Event "Early-Titled-Tuesday-Blitz-September-12-2023"]
[Site "Chess.com"]
[Date "2023.09.12"]
[Round "9"]
[White "Herzog2012"]
[Black "DefiantChair"]
[Result "0-1"]
[WhiteElo "2512"]
[BlackElo "2685"]
[TimeControl "180+1"]
[EndTime "9:46:53 PDT"]
[Termination "DefiantChair won by resignation"]

1. e4 {[%clk 0:03:00.9]} 1... e5 {[%clk 0:02:53.8]} 2. Nc3 {[%clk 0:02:59.2]}
2... Nf6 {[%clk 0:02:53.6]} 3. g3 {[%clk 0:02:58.8]} 3... Nc6 {[%clk 0:02:53.2]}
4. Bg2 {[%clk 0:02:58.8]} 4... Bc5 {[%clk 0:02:52.2]} 5. Nge2 {[%clk 0:02:58.7]}
5... Bb6 {[%clk 0:02:52.4]} 6. Na4 {[%clk 0:02:46.7]} 6... d6 {[%clk 0:02:52.7]}
7. Nxb6 {[%clk 0:02:45.8]} 7... axb6 {[%clk 0:02:53.6]} 8. d4 {[%clk 0:02:44.7]}
8... Qe7 {[%clk 0:02:52.9]} 9. O-O {[%clk 0:02:41.8]} 9... h5 {[%clk 0:02:51.5]}
10. Bg5 {[%clk 0:02:23.3]} 10... exd4 {[%clk 0:02:46.3]} 11. Nxd4 {[%clk
0:02:21.8]} 11... Qe5 {[%clk 0:02:46.1]} 12. Nxc6 {[%clk 0:01:33.1]} 12... bxc6
{[%clk 0:02:10.7]} 13. Bf4 {[%clk 0:01:27.8]} 13... Qb5 {[%clk 0:02:09.4]} 14.
e5 {[%clk 0:01:23.5]} 14... dxe5 {[%clk 0:02:07.6]} 15. Bxe5 {[%clk 0:01:14.9]}
15... O-O {[%clk 0:02:06.7]} 16. Bxf6 {[%clk 0:01:12.7]} 16... gxf6 {[%clk
0:02:07.6]} 17. b3 {[%clk 0:01:02.2]} 17... Bg4 {[%clk 0:02:00.9]} 18. Qd4
{[%clk 0:01:00.2]} 18... Rad8 {[%clk 0:01:48]} 19. Qxf6 {[%clk 0:00:54.6]} 19...
Rd6 {[%clk 0:01:44.2]} 20. Qc3 {[%clk 0:00:49.4]} 20... Rfd8 {[%clk 0:01:40.7]}
21. Rfe1 {[%clk 0:00:47.6]} 21... Qg5 {[%clk 0:01:28.4]} 22. h3 {[%clk
0:00:32.8]} 22... Bc8 {[%clk 0:01:22.5]} 23. Re5 {[%clk 0:00:24.6]} 23... Qg7
{[%clk 0:01:14.9]} 24. Rae1 {[%clk 0:00:22.3]} 24... Bd7 {[%clk 0:01:08.7]} 25.
Qe3 {[%clk 0:00:17.3]} 25... h4 {[%clk 0:01:08.8]} 26. Rg5 {[%clk 0:00:14.5]}
26... Rg6 {[%clk 0:01:03.7]} 27. Rxg6 {[%clk 0:00:14.5]} 27... Qxg6 {[%clk
0:01:04.2]} 28. Qd3 {[%clk 0:00:05]} 28... Qg5 {[%clk 0:00:57.5]} 29. gxh4
{[%clk 0:00:03.4]} 29... Qxh4 {[%clk 0:00:54.5]} 30. Qg3+ {[%clk 0:00:04.1]}
30... Qxg3 {[%clk 0:00:53.8]} 31. fxg3 {[%clk 0:00:05]} 31... Be6 {[%clk
0:00:54]} 32. Bxc6 {[%clk 0:00:04.7]} 32... Rd2 {[%clk 0:00:53.4]} 33. Be4
{[%clk 0:00:03.7]} 33... Bxh3 {[%clk 0:00:53.2]} 34. Kh1 {[%clk 0:00:02.9]}
34... f5 {[%clk 0:00:49.6]} 35. Bd3 {[%clk 0:00:02.9]} 35... Kf7 {[%clk
0:00:42.7]} 36. Re2 {[%clk 0:00:03.2]} 36... Rd1+ {[%clk 0:00:42.5]} 37. Kh2
{[%clk 0:00:03.4]} 37... Bg4 {[%clk 0:00:42.6]} 38. Rf2 {[%clk 0:00:04]} 38...
Kf6 {[%clk 0:00:42.6]} 39. Kg2 {[%clk 0:00:04.7]} 39... c5 {[%clk 0:00:37.5]}
40. Rf1 {[%clk 0:00:02.4]} 40... Rd2+ {[%clk 0:00:37.4]} 41. Rf2 {[%clk
0:00:02.8]} 41... Bh3+ {[%clk 0:00:37.2]} 42. Kf3 {[%clk 0:00:02.6]} 42... Rd1
{[%clk 0:00:32.8]} 43. Ke2 {[%clk 0:00:02.8]} 43... Bg4+ {[%clk 0:00:32.7]} 44.
Ke3 {[%clk 0:00:02.3]} 44... Ke5 {[%clk 0:00:31.6]} 45. Be2 {[%clk 0:00:02.3]}
45... Rd4 {[%clk 0:00:29.7]} 46. Bxg4 {[%clk 0:00:02.3]} 46... Rxg4 {[%clk
0:00:30.6]} 47. Kf3 {[%clk 0:00:02.8]} 47... b5 {[%clk 0:00:30.8]} 48. Re2+
{[%clk 0:00:03.7]} 48... Kf6 {[%clk 0:00:30.4]} 49. Rd2 {[%clk 0:00:03.2]} 49...
Ke5 {[%clk 0:00:26.7]} 50. c3 {[%clk 0:00:03.6]} 50... Rg8 {[%clk 0:00:26]} 51.
Re2+ {[%clk 0:00:04]} 51... Kf6 {[%clk 0:00:25.9]} 52. Rd2 {[%clk 0:00:04.6]}
52... Ke6 {[%clk 0:00:25.7]} 53. Re2+ {[%clk 0:00:04.6]} 53... Kf6 {[%clk
0:00:26.1]} 54. c4 {[%clk 0:00:03.2]} 54... b4 {[%clk 0:00:25.9]} 55. Rd2 {[%clk
0:00:03.1]} 55... Ra8 {[%clk 0:00:25.7]} 56. Rd6+ {[%clk 0:00:03]} 56... Kg5
{[%clk 0:00:25.6]} 57. Rd3 {[%clk 0:00:01.4]} 57... Rxa2 {[%clk 0:00:25.5]} 58.
Re3 {[%clk 0:00:02.3]} 58... Rb2 {[%clk 0:00:25.4]} 59. Rd3 {[%clk 0:00:02.8]}
59... Rc2 {[%clk 0:00:25.2]} 60. Re3 {[%clk 0:00:03.4]} 60... Rd2 {[%clk
0:00:19.7]} 61. Re5 {[%clk 0:00:02.3]} 61... Rd3+ {[%clk 0:00:19]} 62. Re3
{[%clk 0:00:02.9]} 62... Rc3 {[%clk 0:00:19.4]} 63. Rxc3 {[%clk 0:00:01.6]}
63... bxc3 {[%clk 0:00:20.3]} 64. Ke2 {[%clk 0:00:01.8]} 64... Kg4 {[%clk
0:00:20.9]} 65. Kd3 {[%clk 0:00:01.7]} 65... Kxg3 {[%clk 0:00:21]} 66. b4 {[%clk
0:00:01.6]} 66... f4 {[%clk 0:00:20.7]} 67. bxc5 {[%clk 0:00:01.7]} 67... f3
{[%clk 0:00:21.3]} 68. c6 {[%clk 0:00:02.1]} 68... f2 {[%clk 0:00:21.9]} 0-1

[Event "Early-Titled-Tuesday-Blitz-September-12-2023"]
[Site "Chess.com"]
[Date "2023.09.12"]
[Round "9"]
[White "Zheenbekov86"]
[Black "FARIZA2018"]
[Result "1-0"]
[WhiteElo "2421"]
[BlackElo "2509"]
[TimeControl "180+1"]
[EndTime "9:46:55 PDT"]
[Termination "Zheenbekov86 won on time"]

1. e4 {[%clk 0:03:00.9]} 1... e5 {[%clk 0:02:57.1]} 2. Nf3 {[%clk 0:03:00.8]}
2... Nc6 {[%clk 0:02:57.1]} 3. Bc4 {[%clk 0:03:01.1]} 3... Nf6 {[%clk
0:02:56.6]} 4. d3 {[%clk 0:03:00.2]} 4... Bc5 {[%clk 0:02:56.1]} 5. O-O {[%clk
0:03:00.8]} 5... O-O {[%clk 0:02:56.4]} 6. c3 {[%clk 0:03:01.2]} 6... h6 {[%clk
0:02:52.7]} 7. b4 {[%clk 0:02:55.5]} 7... Bd6 {[%clk 0:02:48.1]} 8. Re1 {[%clk
0:02:51]} 8... a6 {[%clk 0:02:34.5]} 9. Nbd2 {[%clk 0:02:45.9]} 9... b5 {[%clk
0:02:34.3]} 10. Bb3 {[%clk 0:02:45.6]} 10... Bb7 {[%clk 0:02:34]} 11. a3 {[%clk
0:02:40.8]} 11... Be7 {[%clk 0:02:31.1]} 12. d4 {[%clk 0:02:37.2]} 12... d6
{[%clk 0:02:23.6]} 13. Nf1 {[%clk 0:02:33.3]} 13... a5 {[%clk 0:02:11.1]} 14. d5
{[%clk 0:02:25.4]} 14... Nb8 {[%clk 0:02:10.6]} 15. Ng3 {[%clk 0:02:12.9]} 15...
Bc8 {[%clk 0:02:10.4]} 16. Qe2 {[%clk 0:01:58.5]} 16... Qe8 {[%clk 0:01:48.8]}
17. Nh4 {[%clk 0:01:43.6]} 17... Na6 {[%clk 0:01:44.4]} 18. Nhf5 {[%clk
0:01:43.1]} 18... Bxf5 {[%clk 0:01:43.2]} 19. Nxf5 {[%clk 0:01:42.7]} 19... axb4
{[%clk 0:01:43.6]} 20. axb4 {[%clk 0:01:41.1]} 20... Bd8 {[%clk 0:01:12.8]} 21.
Qf3 {[%clk 0:01:40.2]} 21... Qd7 {[%clk 0:01:02.7]} 22. Qg3 {[%clk 0:01:37.1]}
22... Nh5 {[%clk 0:00:58.6]} 23. Qg4 {[%clk 0:01:37.1]} 23... Nf6 {[%clk
0:00:36.7]} 24. Nxh6+ {[%clk 0:01:36.5]} 24... Kh7 {[%clk 0:00:36.7]} 25. Qh4
{[%clk 0:01:12.1]} 25... gxh6 {[%clk 0:00:23]} 26. Qxh6+ {[%clk 0:01:11.1]}
26... Kg8 {[%clk 0:00:23.4]} 27. Re3 {[%clk 0:01:07.7]} 27... Nxe4 {[%clk
0:00:22.5]} 28. Rh3 {[%clk 0:00:57.6]} 28... f5 {[%clk 0:00:19.6]} 29. f3 {[%clk
0:00:29.4]} 29... Qg7 {[%clk 0:00:15.7]} 30. fxe4 {[%clk 0:00:21.2]} 30... Qxh6
{[%clk 0:00:15.4]} 31. Bxh6 {[%clk 0:00:20.8]} 31... Rf7 {[%clk 0:00:15.3]} 32.
exf5 {[%clk 0:00:18.9]} 32... Rxf5 {[%clk 0:00:15]} 33. Bc2 {[%clk 0:00:18.9]}
33... Rf7 {[%clk 0:00:11.3]} 34. Rg3+ {[%clk 0:00:19.2]} 34... Kh8 {[%clk
0:00:11.4]} 35. Bg6 {[%clk 0:00:19.1]} 35... Rf6 {[%clk 0:00:10.5]} 36. h4
{[%clk 0:00:18.7]} 36... c6 {[%clk 0:00:09]} 37. dxc6 {[%clk 0:00:18.6]} 37...
Nc7 {[%clk 0:00:09.5]} 38. Rxa8 {[%clk 0:00:17.9]} 38... Nxa8 {[%clk 0:00:10]}
39. h5 {[%clk 0:00:16]} 39... d5 {[%clk 0:00:07.6]} 40. Bg5 {[%clk 0:00:09.7]}
40... Bb6+ {[%clk 0:00:08]} 41. Kh2 {[%clk 0:00:09]} 41... Rxc6 {[%clk
0:00:07.8]} 42. Rf3 {[%clk 0:00:08.3]} 42... Rc8 {[%clk 0:00:07.4]} 43. Bf6+
{[%clk 0:00:08.3]} 43... Kg8 {[%clk 0:00:07.1]} 44. Bxe5 {[%clk 0:00:08.7]}
44... Bc7 {[%clk 0:00:06.7]} 45. Bxc7 {[%clk 0:00:08.3]} 45... Rxc7 {[%clk
0:00:07.3]} 46. h6 {[%clk 0:00:08.6]} 46... Nb6 {[%clk 0:00:06.6]} 47. h7+
{[%clk 0:00:08.8]} 47... Kg7 {[%clk 0:00:07.2]} 48. Bd3 {[%clk 0:00:07.9]} 48...
Rc8 {[%clk 0:00:04.3]} 49. Rg3+ {[%clk 0:00:07.5]} 49... Kh8 {[%clk 0:00:04.9]}
50. Rg6 {[%clk 0:00:07.4]} 50... Nc4 {[%clk 0:00:04.9]} 51. Rg5 {[%clk
0:00:04.9]} 51... Nb2 {[%clk 0:00:03.7]} 52. Bc2 {[%clk 0:00:04.6]} 52... d4
{[%clk 0:00:02.7]} 53. Rxb5 {[%clk 0:00:02.5]} 53... dxc3 {[%clk 0:00:02.9]} 54.
Rg5 {[%clk 0:00:01.9]} 54... Nc4 {[%clk 0:00:03.2]} 55. b5 {[%clk 0:00:02.8]}
55... Ne3 {[%clk 0:00:03.6]} 56. b6 {[%clk 0:00:02.7]} 56... Nxc2 {[%clk
0:00:03.8]} 57. b7 {[%clk 0:00:03.2]} 57... Rb8 {[%clk 0:00:04.3]} 58. Rg8+
{[%clk 0:00:03.8]} 1-0

[Event "Early-Titled-Tuesday-Blitz-September-12-2023"]
[Site "Chess.com"]
[Date "2023.09.12"]
[Round "9"]
[White "S-Fazulyanov"]
[Black "Bilan_Danila"]
[Result "0-1"]
[WhiteElo "2434"]
[BlackElo "2578"]
[TimeControl "180+1"]
[EndTime "9:46:57 PDT"]
[Termination "Bilan_Danila won by resignation"]

1. e4 {[%clk 0:02:58.2]} 1... c6 {[%clk 0:03:00.3]} 2. d4 {[%clk 0:02:56.5]}
2... d5 {[%clk 0:03:01.2]} 3. exd5 {[%clk 0:02:57.4]} 3... cxd5 {[%clk
0:03:01.7]} 4. Bd3 {[%clk 0:02:58.3]} 4... Nc6 {[%clk 0:03:01.9]} 5. c3 {[%clk
0:02:59.1]} 5... Qc7 {[%clk 0:03:02.4]} 6. h3 {[%clk 0:02:55.9]} 6... Nf6 {[%clk
0:02:56.8]} 7. Nf3 {[%clk 0:02:55.4]} 7... g6 {[%clk 0:02:56.4]} 8. O-O {[%clk
0:02:42.6]} 8... Bf5 {[%clk 0:02:57]} 9. Bxf5 {[%clk 0:02:43]} 9... gxf5 {[%clk
0:02:57.9]} 10. Qd3 {[%clk 0:02:43.3]} 10... e6 {[%clk 0:02:58.1]} 11. Ne5
{[%clk 0:02:36]} 11... Nxe5 {[%clk 0:02:09.6]} 12. dxe5 {[%clk 0:02:36.6]} 12...
Qxe5 {[%clk 0:02:10]} 13. Qb5+ {[%clk 0:02:30.3]} 13... Nd7 {[%clk 0:02:09.8]}
14. Qxb7 {[%clk 0:02:27.1]} 14... Rb8 {[%clk 0:02:09.9]} 15. Qc6 {[%clk
0:02:25.9]} 15... Rg8 {[%clk 0:01:50.8]} 16. Nd2 {[%clk 0:02:17.6]} 16... Bd6
{[%clk 0:01:18.2]} 17. Nf3 {[%clk 0:02:14.5]} 17... Qe4 {[%clk 0:01:10.5]} 18.
Kh1 {[%clk 0:01:59.7]} 18... Ke7 {[%clk 0:00:59.4]} 19. Bg5+ {[%clk 0:01:48.4]}
19... f6 {[%clk 0:00:50.2]} 20. Rfe1 {[%clk 0:01:29.5]} 20... Qc4 {[%clk
0:00:37.3]} 21. Qxc4 {[%clk 0:00:35]} 21... dxc4 {[%clk 0:00:38.2]} 22. Bc1
{[%clk 0:00:35.6]} 22... Bc5 {[%clk 0:00:31.3]} 23. Re2 {[%clk 0:00:34.2]} 23...
e5 {[%clk 0:00:22.5]} 24. Be3 {[%clk 0:00:32.9]} 24... Bxe3 {[%clk 0:00:21.4]}
25. fxe3 {[%clk 0:00:33.5]} 25... Nc5 {[%clk 0:00:21.4]} 26. Rd1 {[%clk
0:00:28.2]} 26... Ne4 {[%clk 0:00:21.1]} 27. Kh2 {[%clk 0:00:24.8]} 27... Rgd8
{[%clk 0:00:20.7]} 28. Rxd8 {[%clk 0:00:20.4]} 28... Rxd8 {[%clk 0:00:21.6]} 29.
Nh4 {[%clk 0:00:20.6]} 29... Ke6 {[%clk 0:00:21.3]} 30. Nf3 {[%clk 0:00:20]}
30... Rd1 {[%clk 0:00:20.1]} 31. g4 {[%clk 0:00:18.1]} 31... fxg4 {[%clk
0:00:19.8]} 32. hxg4 {[%clk 0:00:19]} 32... a5 {[%clk 0:00:19.6]} 33. a3 {[%clk
0:00:19.2]} 33... a4 {[%clk 0:00:19.8]} 34. Kg2 {[%clk 0:00:19.5]} 34... h6
{[%clk 0:00:17.4]} 35. Kh2 {[%clk 0:00:19.1]} 35... Ng5 {[%clk 0:00:13.1]} 36.
Nxg5+ {[%clk 0:00:15.8]} 36... hxg5 {[%clk 0:00:14]} 37. Kg2 {[%clk 0:00:16]}
37... Rb1 {[%clk 0:00:13.7]} 38. Kf3 {[%clk 0:00:15]} 38... Rf1+ {[%clk
0:00:11.4]} 39. Kg2 {[%clk 0:00:14.7]} 39... Rd1 {[%clk 0:00:09.9]} 40. Kf2
{[%clk 0:00:14.4]} 40... f5 {[%clk 0:00:08.7]} 41. gxf5+ {[%clk 0:00:10.8]}
41... Kxf5 {[%clk 0:00:09.6]} 42. e4+ {[%clk 0:00:09.9]} 42... Kf4 {[%clk
0:00:09.5]} 43. Kg2 {[%clk 0:00:10.6]} 43... g4 {[%clk 0:00:07.2]} 44. Kf2
{[%clk 0:00:10.1]} 44... g3+ {[%clk 0:00:04.8]} 45. Kg2 {[%clk 0:00:10.1]} 45...
Rb1 {[%clk 0:00:05.2]} 46. Rd2 {[%clk 0:00:10]} 46... Kxe4 {[%clk 0:00:04.9]}
47. Kxg3 {[%clk 0:00:09.6]} 47... Rf1 {[%clk 0:00:05]} 48. Kg2 {[%clk
0:00:09.4]} 48... Rf7 {[%clk 0:00:04.5]} 49. Rd8 {[%clk 0:00:05.4]} 49... Rb7
{[%clk 0:00:04.7]} 50. Ra8 {[%clk 0:00:03.5]} 50... Rxb2+ {[%clk 0:00:04.2]} 51.
Kf1 {[%clk 0:00:04.4]} 51... Kd3 {[%clk 0:00:04.6]} 52. Rxa4 {[%clk 0:00:04.7]}
52... e4 {[%clk 0:00:05.2]} 53. Ra8 {[%clk 0:00:04.2]} 53... e3 {[%clk
0:00:05.2]} 54. Rd8+ {[%clk 0:00:04.3]} 54... Kxc3 {[%clk 0:00:05.7]} 55. Ke1
{[%clk 0:00:04.7]} 55... Ra2 {[%clk 0:00:05.9]} 56. Re8 {[%clk 0:00:04]} 56...
Kd3 {[%clk 0:00:04.1]} 57. Rd8+ {[%clk 0:00:04.2]} 57... Ke4 {[%clk 0:00:04.4]}
58. Re8+ {[%clk 0:00:04.8]} 58... Kd4 {[%clk 0:00:05]} 59. Rd8+ {[%clk
0:00:05.4]} 59... Kc5 {[%clk 0:00:05.4]} 60. Rc8+ {[%clk 0:00:05.7]} 60... Kb5
{[%clk 0:00:06]} 61. Rb8+ {[%clk 0:00:05.1]} 61... Ka4 {[%clk 0:00:06.5]} 62.
Ra8+ {[%clk 0:00:04.3]} 62... Kb3 {[%clk 0:00:06.7]} 63. Re8 {[%clk 0:00:03.1]}
63... Rxa3 {[%clk 0:00:04.3]} 64. Rxe3+ {[%clk 0:00:03.5]} 64... Kb2 {[%clk
0:00:04.9]} 65. Rxa3 {[%clk 0:00:03]} 65... Kxa3 {[%clk 0:00:04.9]} 66. Kd2
{[%clk 0:00:03.9]} 66... Kb2 {[%clk 0:00:05.5]} 67. Kd1 {[%clk 0:00:04.4]} 67...
c3 {[%clk 0:00:06.4]} 68. Ke2 {[%clk 0:00:05.1]} 68... c2 {[%clk 0:00:07.3]} 0-1